fUSD/lending_fUSD_20250115
["ID","MTS","AMOUNT","RATE_DAILY","PERIOD"]
[348996472,1736926250003,-500.0,0.00014899,2]
[348996474,1736926250013,-500.0,0.00014899,2]
[348996478,1736926250034,-500.0,0.00014899,2]
[348996480,1736926250043,-500.83963316,0.00014899,2]
[348996482,1736926250053,-500.0,0.00014899,2]
[348996484,1736926250062,-500.0,0.00014899,2]
[348996486,1736926250072,-500.27271376,0.00014899,2]
[348996488,1736926250081,-500.0,0.00014899,2]
[348996490,1736926250091,-500.0,0.00014899,2]
[348996492,1736926250100,-500.0,0.00014899,2]
[348996494,1736926250110,-500.38544728,0.00014899,2]
[348996496,1736926250119,-500.0,0.00014899,2]
[348996498,1736926250128,-500.0,0.00014899,2]
[348996500,1736926250137,-500.48189289,0.00014899,2]
[348996502,1736926250148,-500.0,0.00014899,2]
[348996504,1736926250158,-500.21226639,0.00014899,2]
[348996506,1736926250167,-500.13515898,0.00014899,2]
[348996508,1736926250177,-503.2774497,0.00014899,2]
[348996510,1736926250186,-500.0,0.00014899,2]
[348996512,1736926250195,-500.0,0.00014899,2]
[348996514,1736926250205,-568.69,0.00014899,2]
[348996516,1736926250215,-500.18046831,0.00014899,2]
[348996518,1736926250224,-500.0,0.00014899,2]
[348996520,1736926250233,-500.0,0.00014899,2]
[348996522,1736926250243,-500.0,0.00014899,2]
[348996524,1736926250253,-617.78903025,0.00014899,2]
[348996526,1736926250262,-500.0,0.00014899,2]
[348996528,1736926250272,-500.0,0.00014899,2]
[348996530,1736926250281,-161.67535371,0.00014899,2]
[348996532,1736926250291,-500.51640628,0.00014899,2]
[348996534,1736926250301,-567.62,0.00014899,2]
[348996536,1736926250311,-614.11,0.00014899,2]
[348996538,1736926250320,-502.31028372,0.00014899,2]
[348996540,1736926250329,-500.0,0.00014899,2]
[348996542,1736926250339,-508.73,0.00014899,2]
[348996544,1736926250348,-500.0,0.00014899,2]
[348996546,1736926250357,-500.0,0.00014899,2]
[348996548,1736926250367,-500.0,0.00014899,2]
[348996550,1736926250377,-500.0,0.00014899,2]
[348996552,1736926250387,-535.62,0.00014899,2]
[348996554,1736926250396,-500.1405028,0.00014899,2]
[348996556,1736926250409,-500.0,0.00014899,2]
[348996558,1736926250420,-500.0,0.00014899,2]
[348996560,1736926250430,-632.85,0.00014899,2]
[348996562,1736926250438,-500.0,0.00014899,2]
[348996564,1736926250449,-500.0,0.00014899,2]
[348996566,1736926250458,-526.37,0.00014899,2]
[348996568,1736926250466,-500.0,0.00014899,2]
[348996570,1736926250475,-500.0,0.00014899,2]
[348996572,1736926250485,-500.0,0.00014899,2]
[348996574,1736926250495,-500.0,0.00014899,2]
[348996576,1736926250503,-500.0,0.00014899,2]
[348996578,1736926250512,-500.0,0.00014899,2]
[348996580,1736926250521,-500.0,0.00014899,2]
[348996582,1736926250531,-500.17576071,0.00014899,2]
[348996584,1736926250539,-502.90580685,0.00014899,2]
[348996586,1736926250548,-500.0,0.00014899,2]
[348996588,1736926250557,-500.0,0.00014899,2]
[348996590,1736926250567,-501.59608129,0.00014899,2]
[348996592,1736926250575,-500.0,0.00014899,2]
[348996594,1736926250584,-500.0,0.00014899,2]
[348996596,1736926250594,-500.0,0.00014899,2]
[348996598,1736926250603,-500.0,0.00014899,2]
[348996600,1736926250612,-500.0,0.00014899,2]
[348996602,1736926250621,-500.0,0.00014899,2]
[348996604,1736926250630,-500.0,0.00014899,2]
[348996606,1736926250639,-500.0,0.00014899,2]
[348996609,1736926250649,-500.0,0.00014899,2]
[348996611,1736926250658,-500.0,0.00014899,2]
[348996613,1736926250667,-501.02885426,0.00014899,2]
[348996615,1736926250677,-500.0,0.00014899,2]
[348996617,1736926250687,-500.0,0.00014899,2]
[348996618,1736926250696,-500.0,0.00014899,2]
[348996619,1736926250706,-500.0,0.00014899,2]
[348996620,1736926250715,-500.0,0.00014899,2]
[348996621,1736926250725,-500.0,0.00014899,2]
[348996622,1736926250734,-500.0,0.00014899,2]
[348996623,1736926250744,-500.0,0.00014899,2]
[348996624,1736926250754,-500.0,0.00014899,2]
[348996625,1736926250764,-500.0,0.00014899,2]
[348996627,1736926250774,-500.0,0.00014899,2]
[348996629,1736926250784,-500.0,0.00014899,2]
[348996631,1736926250795,-500.0,0.00014899,2]
[348996633,1736926250806,-500.0,0.00014899,2]
[348996635,1736926250816,-500.0,0.00014899,2]
[348996637,1736926250826,-500.0,0.00014899,2]
[348996639,1736926250836,-500.0,0.00014899,2]
[348996642,1736926250846,-500.0,0.00014899,2]
[348996644,1736926250857,-500.0,0.00014899,2]
[348996646,1736926250867,-500.0,0.00014899,2]
[348996648,1736926250876,-502.13349015,0.00014899,2]
[348996650,1736926250886,-500.0,0.00014899,2]
[348996652,1736926250895,-500.0,0.00014899,2]
[348996654,1736926250904,-500.0,0.00014899,2]
[348996656,1736926250914,-500.0,0.00014899,2]
[348996658,1736926250923,-501.86,0.00014899,2]
[348996660,1736926250933,-500.0,0.00014899,2]
[348996662,1736926250943,-500.0,0.00014899,2]
[348996664,1736926250952,-500.0,0.00014899,2]
[348996666,1736926250961,-500.0,0.00014899,2]
[348996668,1736926250971,-500.0,0.00014899,2]
[348996670,1736926250980,-500.0,0.00014899,2]
[348996671,1736926250990,-505.47479646,0.00014899,2]
[348996674,1736926250999,-500.0,0.00014899,2]
[348996676,1736926251009,-508.92,0.00014899,2]
[348996677,1736926251018,-500.0,0.00014899,2]
[348996679,1736926251027,-500.0,0.00014899,2]
[348996681,1736926251038,-500.0,0.00014899,2]
[348996684,1736926251049,-500.0,0.00014899,2]
[348996685,1736926251059,-502.7078102,0.00014899,2]
[348996688,1736926251070,-500.0,0.00014899,2]
[348996690,1736926251079,-500.0,0.00014899,2]
[348996692,1736926251089,-500.0,0.00014899,2]
[348996694,1736926251098,-157.54953626,0.00014899,2]
[348996696,1736926251108,-500.0,0.00014899,2]
[348996698,1736926251117,-501.48614899,0.00014899,2]
[348996700,1736926251127,-500.0,0.00014899,2]
[348996702,1736926251136,-500.0,0.00014899,2]
[348996704,1736926251146,-500.0,0.00014899,2]
[348996706,1736926251155,-500.0,0.00014899,2]
[348996708,1736926251164,-500.0,0.00014899,2]
[348996710,1736926251174,-500.0,0.00014899,2]
[348996712,1736926251184,-500.0,0.00014899,2]
[348996714,1736926251194,-500.0,0.00014899,2]
[348996716,1736926251204,-500.0,0.00014899,2]
[348996718,1736926251213,-500.0,0.00014899,2]
[348996720,1736926251223,-500.0,0.00014899,2]
[348996722,1736926251232,-635.71,0.00014899,2]
[348996724,1736926251241,-500.0,0.00014899,2]
[348996726,1736926251251,-500.0,0.00014899,2]
[348996728,1736926251262,-641.61,0.00014899,2]
[348996730,1736926251272,-565.0283754,0.00014899,2]
[348996732,1736926251281,-500.0,0.00014899,2]
[348996734,1736926251292,-500.0,0.00014899,2]
[348996736,1736926251301,-500.0,0.00014899,2]
[348996738,1736926251311,-500.0,0.00014899,2]
[348996740,1736926251320,-500.0,0.00014899,2]
[348996742,1736926251330,-500.0,0.00014899,2]
[348996744,1736926251339,-500.0,0.00014899,2]
[348996746,1736926251349,-511.58842004,0.00014899,2]
[348996748,1736926251361,-500.0,0.00014899,2]
[348996750,1736926251371,-500.0,0.00014899,2]
[348996753,1736926251381,-500.0,0.00014899,2]
[348996754,1736926251391,-500.0,0.00014899,2]
[348996757,1736926251401,-500.0,0.00014899,2]
[348996758,1736926251414,-519.34711564,0.00014899,2]
[348996761,1736926251424,-500.0,0.00014899,2]
[348996763,1736926251433,-500.0,0.00014899,2]
[348996765,1736926251443,-500.0,0.00014899,2]
[348996767,1736926251454,-500.0,0.00014899,2]
[348996769,1736926251463,-500.0,0.00014899,2]
[348996771,1736926251473,-500.0,0.00014899,2]
[348996773,1736926251484,-513.82605171,0.00014899,2]
[348996775,1736926251494,-500.0,0.00014899,2]
[348996777,1736926251504,-500.0,0.00014899,2]
[348996779,1736926251513,-617.23,0.00014899,2]
[348996781,1736926251523,-500.0,0.00014899,2]
[348996783,1736926251533,-500.0,0.00014899,2]
[348996785,1736926251543,-500.0,0.00014899,2]
[348996787,1736926251552,-500.0,0.00014899,2]
[348996789,1736926251562,-359.14885845,0.00014899,2]
[348996791,1736926251571,-500.0,0.00014899,2]
[348996793,1736926251581,-500.0,0.00014899,2]
[348996795,1736926251590,-133959.0,0.000149,3]
[348996797,1736926251600,-500.0,0.00014972,2]
[348996799,1736926251610,-500.0,0.00014972,2]
[348996801,1736926251625,-459.06,0.00014972,2]
[348996803,1736926251634,-500.0,0.00014972,2]
[348996805,1736926251644,-500.0,0.00014972,2]
[348996807,1736926251653,-500.0,0.00014972,2]
[348996809,1736926251663,-500.0,0.00014972,2]
[348996811,1736926251672,-500.0,0.00014972,2]
[348996813,1736926251682,-500.0,0.00014972,2]
[348996815,1736926251691,-6747.0,0.00015,2]
[348996817,1736926251701,-44594.97821549,0.00015,4]
[348996832,1736926251868,-2351.63147196,0.00015,4]
[348996833,1736926251880,-1142.67783012,0.00015,4]
[348996834,1736926251891,-681.0,0.00015,4]
[348996835,1736926251907,-8656.18719702,0.00015,4]
[348996872,1736926291607,150.0,0.00020179,120]
[348996873,1736926350824,150.0,0.00020439,120]
[348996874,1736926366487,2591.434577,0.00023,120]
[348996875,1736926390188,500.0,0.00022911,120]
[348996876,1736926395517,2000.0,0.00022505,120]
[348996877,1736926405950,500.0,0.00022999,120]
[348996878,1736926425470,200.0,0.00022999,120]
[348996879,1736926590848,150.0,0.00022677,120]
[348996880,1736926651622,150.0,0.00021252,120]
[348996881,1736926662355,151.0,0.00023,120]
[348996883,1736926710795,150.0,0.00021723,120]
[348996884,1736926770990,150.0,0.00019847,120]
[348996885,1736926831025,150.0,0.00020942,120]
[348996886,1736926891445,150.0,0.00021031,120]
[348996887,1736926950870,150.0,0.00020282,120]
[348996888,1736926992700,500.0,0.00022984,120]
[348996889,1736926997423,2000.0,0.00022521,120]
[348996890,1736927006926,500.0,0.00022999,120]
[348996891,1736927010803,150.0,0.00019727,120]
[348996892,1736927025362,200.0,0.00022999,120]
[348996893,1736927071413,150.0,0.00019933,120]
[348996894,1736927131397,150.0,0.00020024,120]
[348997113,1736927190753,150.0,0.00020136,120]
[348997116,1736927250772,150.0,0.00020531,120]
[348997117,1736927280751,1051.72902376,0.00023,120]
[348997118,1736927301141,182.83,8.219e-05,2]
[348997119,1736927310846,150.0,0.00021323,120]
[348997120,1736927340845,166.18,7.821e-05,2]
[348997121,1736927371169,150.0,0.000213,120]
[348997125,1736927431021,150.0,0.00021194,120]
[348997142,1736927431470,-150.0,9.898e-05,2]
[348997143,1736927431480,-13752.9268,9.899e-05,2]
[348997144,1736927431491,-1000.0,9.899e-05,2]
[348997145,1736927431500,-504.5609027,9.999e-05,2]
[348997146,1736927431510,-504.58204553,9.999e-05,2]
[348997147,1736927431519,-500.0,9.999e-05,2]
[348997148,1736927431529,-500.0,9.999e-05,2]
[348997149,1736927431539,-171.00752392,9.999e-05,2]
[348997150,1736927431549,-500.0,9.999e-05,2]
[348997151,1736927431559,-500.0,9.999e-05,2]
[348997152,1736927431570,-500.0,9.999e-05,2]
[348997153,1736927431579,-500.0,9.999e-05,2]
[348997154,1736927431591,-500.0,9.999e-05,2]
[348997155,1736927431601,-500.0,9.999e-05,2]
[348997156,1736927431612,-500.0,9.999e-05,2]
[348997157,1736927431621,-503.33210537,9.999e-05,2]
[348997158,1736927431630,-500.0,9.999e-05,2]
[348997159,1736927431640,-500.0,9.999e-05,2]
[348997160,1736927431650,-500.0,9.999e-05,2]
[348997161,1736927431660,-502.86962572,9.999e-05,2]
[348997162,1736927431670,-500.0,9.999e-05,2]
[348997163,1736927431679,-500.0,9.999e-05,2]
[348997164,1736927431689,-502.6408692,9.999e-05,2]
[348997165,1736927431698,-500.0,9.999e-05,2]
[348997166,1736927431708,-500.0,9.999e-05,2]
[348997167,1736927431717,-517.0953231,9.999e-05,2]
[348997168,1736927431727,-502.7269531,9.999e-05,2]
[348997169,1736927431736,-515.74902069,9.999e-05,2]
[348997170,1736927431745,-500.0,9.999e-05,2]
[348997171,1736927431755,-500.0,9.999e-05,2]
[348997172,1736927431765,-260.92927608,9.999e-05,2]
[348997173,1736927431774,-522.47,9.999e-05,2]
[348997174,1736927431783,-500.0,9.999e-05,2]
[348997175,1736927431795,-516.37055968,9.999e-05,2]
[348997176,1736927431805,-500.0,9.999e-05,2]
[348997177,1736927431815,-500.0,9.999e-05,2]
[348997178,1736927431825,-500.0,9.999e-05,2]
[348997179,1736927431834,-500.0,9.999e-05,2]
[348997180,1736927431844,-500.0,9.999e-05,2]
[348997181,1736927431854,-503.65227841,9.999e-05,2]
[348997182,1736927431863,-502.96572292,9.999e-05,2]
[348997183,1736927431873,-500.0,9.999e-05,2]
[348997184,1736927431883,-504.55149892,9.999e-05,2]
[348997185,1736927431892,-500.0,9.999e-05,2]
[348997186,1736927431902,-500.0,9.999e-05,2]
[348997187,1736927431911,-500.0,9.999e-05,2]
[348997188,1736927431921,-500.0,9.999e-05,2]
[348997189,1736927431930,-500.0,9.999e-05,2]
[348997190,1736927431939,-344.55196282,9.999e-05,2]
[348997191,1736927431948,-500.0,9.999e-05,2]
[348997192,1736927431958,-500.0,9.999e-05,2]
[348997193,1736927431967,-500.0,9.999e-05,2]
[348997194,1736927431976,-507.49562152,9.999e-05,2]
[348997195,1736927431986,-503.59744126,9.999e-05,2]
[348997196,1736927431995,-500.0,9.999e-05,2]
[348997197,1736927432005,-500.0,9.999e-05,2]
[348997198,1736927432015,-500.0,9.999e-05,2]
[348997199,1736927432023,-324.11441854,9.999e-05,2]
[348997200,1736927432032,-500.0,9.999e-05,2]
[348997201,1736927432042,-500.0,9.999e-05,2]
[348997202,1736927432051,-500.0,9.999e-05,2]
[348997203,1736927432061,-32.55046057,9.999e-05,2]
[348997204,1736927432083,-472.23348852,9.999e-05,2]
[348997205,1736927432094,-523.62416737,9.999e-05,2]
[348997206,1736927432106,-500.0,9.999e-05,2]
[348997207,1736927432115,-39.93811086,9.999e-05,2]
[348997208,1736927432128,-460.06188914,9.999e-05,2]
[348997209,1736927432139,-500.0,9.999e-05,2]
[348997210,1736927432148,-500.0,9.999e-05,2]
[348997211,1736927432158,-500.0,9.999e-05,2]
[348997212,1736927432167,-500.0,9.999e-05,2]
[348997213,1736927432176,-460.40450026,9.999e-05,2]
[348997214,1736927432188,-39.59549974,9.999e-05,2]
[348997215,1736927432198,-500.0,9.999e-05,2]
[348997216,1736927432207,-452.59013642,9.999e-05,2]
[348997217,1736927432218,-47.40986358,9.999e-05,2]
[348997218,1736927432227,-421.73413702,9.999e-05,2]
[348997219,1736927432239,-78.26586298,9.999e-05,2]
[348997220,1736927432248,-270.71418574,9.999e-05,2]
[348997221,1736927432263,-229.28581426,9.999e-05,2]
[348997222,1736927432273,-505.25041688,9.999e-05,2]
[348997223,1736927432282,-500.0,9.999e-05,2]
[348997224,1736927432291,-507.73434839,9.999e-05,2]
[348997225,1736927432300,-500.0,9.999e-05,2]
[348997226,1736927432309,-500.0,9.999e-05,2]
[348997227,1736927432322,-500.0,9.999e-05,2]
[348997228,1736927432331,-500.0,9.999e-05,2]
[348997229,1736927432341,-503.05845577,9.999e-05,2]
[348997230,1736927432350,-500.0,9.999e-05,2]
[348997231,1736927432359,-500.0,9.999e-05,2]
[348997232,1736927432369,-500.0,9.999e-05,2]
[348997233,1736927432378,-500.0,9.999e-05,2]
[348997234,1736927432386,-500.54124995,9.999e-05,2]
[348997235,1736927432396,-500.0,9.999e-05,2]
[348997236,1736927432406,-500.0,9.999e-05,2]
[348997237,1736927432415,-500.0,9.999e-05,2]
[348997238,1736927432424,-500.0,9.999e-05,2]
[348997239,1736927432434,-500.0,9.999e-05,2]
[348997240,1736927432443,-500.0,9.999e-05,2]
[348997241,1736927432452,-500.0,9.999e-05,2]
[348997242,1736927432462,-500.0,9.999e-05,2]
[348997243,1736927432471,-500.0,9.999e-05,2]
[348997244,1736927432481,-500.0,9.999e-05,2]
[348997245,1736927432490,-278.10111945,9.999e-05,2]
[348997246,1736927432500,-500.0,9.999e-05,2]
[348997247,1736927432509,-500.0,9.999e-05,2]
[348997248,1736927432519,-500.0,9.999e-05,2]
[348997249,1736927432528,-500.0,9.999e-05,2]
[348997250,1736927432537,-500.0,9.999e-05,2]
[348997251,1736927432546,-500.0,9.999e-05,2]
[348997252,1736927432556,-500.0,9.999e-05,2]
[348997253,1736927432567,-500.0,9.999e-05,2]
[348997254,1736927432577,-500.0,9.999e-05,2]
[348997255,1736927432586,-500.0,9.999e-05,2]
[348997256,1736927432595,-500.0,9.999e-05,2]
[348997257,1736927432605,-504.64887105,9.999e-05,2]
[348997258,1736927432614,-503.44317613,9.999e-05,2]
[348997259,1736927432623,-500.0,9.999e-05,2]
[348997260,1736927432632,-269.02855718,9.999e-05,2]
[348997261,1736927432641,-500.0,9.999e-05,2]
[348997262,1736927432650,-503.79562366,9.999e-05,2]
[348997263,1736927432659,-585.52679627,9.999e-05,2]
[348997264,1736927432669,-501.82666319,9.999e-05,2]
[348997265,1736927432678,-500.0,9.999e-05,2]
[348997266,1736927432687,-500.0,9.999e-05,2]
[348997267,1736927432696,-500.19677852,9.999e-05,2]
[348997268,1736927432705,-500.0,9.999e-05,2]
[348997269,1736927432714,-500.0,9.999e-05,2]
[348997270,1736927432724,-503.99549114,9.999e-05,2]
[348997271,1736927432733,-508.93666811,9.999e-05,2]
[348997272,1736927432742,-500.0,9.999e-05,2]
[348997273,1736927432755,-501.33213268,9.999e-05,2]
[348997274,1736927432765,-549.53874491,9.999e-05,2]
[348997275,1736927432774,-500.0,9.999e-05,2]
[348997276,1736927432783,-500.0,9.999e-05,2]
[348997277,1736927432794,-500.0,9.999e-05,2]
[348997278,1736927432804,-501.43185543,9.999e-05,2]
[348997279,1736927432816,-500.0,9.999e-05,2]
[348997280,1736927432825,-500.0,9.999e-05,2]
[348997281,1736927432834,-500.0,9.999e-05,2]
[348997282,1736927432843,-191.71050562,9.999e-05,2]
[348997283,1736927432853,-191.52181228,9.999e-05,2]
[348997284,1736927432872,-500.0,9.999e-05,2]
[348997285,1736927432883,-505.86108884,9.999e-05,2]
[348997286,1736927432892,-500.0,9.999e-05,2]
[348997287,1736927432901,-392.83033694,9.999e-05,2]
[348997288,1736927432911,-500.0,9.999e-05,2]
[348997289,1736927432920,-502.27902988,9.999e-05,2]
[348997290,1736927432930,-500.0,9.999e-05,2]
[348997291,1736927432939,-500.0,9.999e-05,2]
[348997292,1736927432949,-500.0,9.999e-05,2]
[348997293,1736927432958,-500.0,9.999e-05,2]
[348997294,1736927432968,-500.0,9.999e-05,2]
[348997295,1736927432977,-502.08940256,9.999e-05,2]
[348997296,1736927432987,-500.0,9.999e-05,2]
[348997297,1736927432996,-500.0,9.999e-05,2]
[348997298,1736927433005,-500.64391728,9.999e-05,2]
[348997299,1736927433015,-445.43617497,9.999e-05,2]
[348997300,1736927433025,-500.0,9.999e-05,2]
[348997301,1736927433035,-500.0,9.999e-05,2]
[348997302,1736927433045,-500.91520187,9.999e-05,2]
[348997303,1736927433054,-500.0,9.999e-05,2]
[348997304,1736927433064,-500.0,9.999e-05,2]
[348997305,1736927433073,-500.0,9.999e-05,2]
[348997306,1736927433083,-500.0,9.999e-05,2]
[348997307,1736927433095,-500.0,9.999e-05,2]
[348997308,1736927433105,-500.0,9.999e-05,2]
[348997309,1736927433114,-500.0,9.999e-05,2]
[348997310,1736927433124,-500.0,9.999e-05,2]
[348997311,1736927433134,-500.0,9.999e-05,2]
[348997312,1736927433144,-500.0,9.999e-05,2]
[348997313,1736927433154,-500.0,9.999e-05,2]
[348997314,1736927433164,-167.61292102,9.999e-05,2]
[348997315,1736927433174,-500.0,9.999e-05,2]
[348997316,1736927433183,-501.9779374,9.999e-05,2]
[348997317,1736927433193,-502.93625627,9.999e-05,2]
[348997318,1736927433202,-500.85519802,9.999e-05,2]
[348997319,1736927433212,-500.0,9.999e-05,2]
[348997320,1736927433222,-500.88860369,9.999e-05,2]
[348997321,1736927433232,-500.0,9.999e-05,2]
[348997322,1736927433242,-500.0,9.999e-05,2]
[348997323,1736927433251,-500.0,9.999e-05,2]
[348997324,1736927433261,-500.40162158,9.999e-05,2]
[348997325,1736927433270,-501.07976742,9.999e-05,2]
[348997326,1736927433280,-501.20145173,9.999e-05,2]
[348997327,1736927433289,-501.28781158,9.999e-05,2]
[348997328,1736927433299,-150.51930925,9.999e-05,2]
[348997329,1736927433308,-500.0,9.999e-05,2]
[348997330,1736927433319,-500.0,9.999e-05,2]
[348997331,1736927433328,-500.0,9.999e-05,2]
[348997332,1736927433338,-500.0,9.999e-05,2]
[348997333,1736927433348,-500.0,9.999e-05,2]
[348997334,1736927433358,-500.0,9.999e-05,2]
[348997335,1736927433367,-500.0,9.999e-05,2]
[348997336,1736927433377,-383.6472465,9.999e-05,2]
[348997337,1736927433387,-500.0,9.999e-05,2]
[348997338,1736927433397,-500.0,9.999e-05,2]
[348997339,1736927433406,-500.0,9.999e-05,2]
[348997340,1736927433416,-500.0,9.999e-05,2]
[348997341,1736927433425,-500.0,9.999e-05,2]
[348997342,1736927433435,-527.0,9.999e-05,2]
[348997343,1736927433445,-500.0,9.999e-05,2]
[348997344,1736927433454,-510.34884022,9.999e-05,2]
[348997345,1736927433464,-500.0,9.999e-05,2]
[348997346,1736927433473,-500.0,9.999e-05,2]
[348997347,1736927433483,-451.63909615,9.999e-05,2]
[348997348,1736927433492,-500.0,9.999e-05,2]
[348997349,1736927433502,-500.0,9.999e-05,2]
[348997350,1736927433512,-500.0,9.999e-05,2]
[348997351,1736927433522,-298.45126082,9.999e-05,2]
[348997352,1736927433532,-500.0,9.999e-05,2]
[348997353,1736927433542,-500.0,9.999e-05,2]
[348997354,1736927433551,-500.0,9.999e-05,2]
[348997355,1736927433561,-467.585064,9.999e-05,2]
[348997356,1736927433572,-159.46784492,0.0001,2]
[348997357,1736927433582,-6422.0,0.0001007,2]
[348997358,1736927433592,-500.0,0.0001017,2]
[348997359,1736927433602,-500.0,0.0001017,2]
[348997360,1736927433612,-500.0,0.0001017,2]
[348997361,1736927433622,-500.0,0.0001017,2]
[348997362,1736927433632,-500.0,0.0001017,2]
[348997363,1736927433642,-616.56,0.0001017,2]
[348997364,1736927433652,-500.0,0.0001017,2]
[348997365,1736927433663,-500.0,0.0001017,2]
[348997366,1736927433672,-500.0,0.0001017,2]
[348997367,1736927433682,-500.0,0.0001017,2]
[348997368,1736927433691,-500.0,0.0001017,2]
[348997369,1736927433701,-500.0,0.0001017,2]
[348997370,1736927433711,-500.0,0.0001017,2]
[348997371,1736927433720,-500.0,0.0001017,2]
[348997372,1736927433730,-500.0,0.0001017,2]
[348997373,1736927433740,-500.0,0.0001017,2]
[348997374,1736927433750,-500.0,0.0001017,2]
[348997375,1736927433760,-500.0,0.0001017,2]
[348997376,1736927433770,-500.0,0.0001017,2]
[348997377,1736927433780,-500.0,0.0001017,2]
[348997378,1736927433790,-500.0,0.0001017,2]
[348997379,1736927433800,-500.0,0.0001017,2]
[348997380,1736927433810,-500.0,0.0001017,2]
[348997381,1736927433820,-500.0,0.0001017,2]
[348997382,1736927433830,-657.29,0.0001017,2]
[348997383,1736927433840,-500.0,0.0001017,2]
[348997384,1736927433850,-500.0,0.0001017,2]
[348997385,1736927433860,-500.0,0.0001017,2]
[348997386,1736927433871,-555.15,0.0001017,2]
[348997387,1736927433882,-500.0,0.0001017,2]
[348997388,1736927433892,-616.99,0.0001017,2]
[348997389,1736927433902,-500.0,0.0001017,2]
[348997390,1736927433911,-500.0,0.00010171,2]
[348997391,1736927433922,-500.0,0.00010171,2]
[348997392,1736927433932,-500.0,0.00010171,2]
[348997393,1736927433941,-500.0,0.00010171,2]
[348997394,1736927433952,-331.5446679,0.00010171,2]
[348997395,1736927433962,-500.0,0.00010171,2]
[348997396,1736927433971,-361.47376988,0.00010171,2]
[348997397,1736927433981,-500.0,0.00010171,2]
[348997398,1736927433991,-500.0,0.00010171,2]
[348997399,1736927434002,-500.0,0.00010171,2]
[348997400,1736927434012,-500.0,0.00010171,2]
[348997401,1736927434021,-500.16,0.00010171,2]
[348997402,1736927434031,-500.0,0.00010171,2]
[348997403,1736927434042,-504.62962021,0.00010171,2]
[348997404,1736927434052,-502.834064,0.00010171,2]
[348997405,1736927434062,-500.0,0.00010171,2]
[348997406,1736927434072,-500.0,0.00010171,2]
[348997407,1736927434082,-500.0,0.00010171,2]
[348997408,1736927434092,-500.0,0.00010171,2]
[348997409,1736927434105,-500.0,0.00010171,2]
[348997410,1736927434114,-502.27050332,0.00010171,2]
[348997411,1736927434124,-500.69856191,0.00010171,2]
[348997412,1736927434133,-500.0,0.00010171,2]
[348997413,1736927434145,-500.0,0.00010171,2]
[348997414,1736927434154,-516.13706162,0.00010171,2]
[348997415,1736927434164,-500.0,0.00010171,2]
[348997416,1736927434174,-493.48187665,0.00010171,2]
[348997417,1736927434184,-500.53754161,0.00010171,2]
[348997418,1736927434193,-606.52024237,0.00010171,2]
[348997419,1736927434202,-500.0,0.00010171,2]
[348997420,1736927434212,-500.0,0.00010171,2]
[348997421,1736927434221,-500.0,0.00010171,2]
[348997422,1736927434231,-500.0,0.00010171,2]
[348997423,1736927434240,-500.0,0.00010171,2]
[348997424,1736927434250,-500.85446613,0.00010171,2]
[348997425,1736927434259,-500.0,0.00010171,2]
[348997426,1736927434269,-502.95534961,0.00010171,2]
[348997427,1736927434279,-500.0,0.00010171,2]
[348997428,1736927434289,-500.60010969,0.00010171,2]
[348997429,1736927434299,-500.78357523,0.00010171,2]
[348997430,1736927434308,-500.0,0.00010171,2]
[348997431,1736927434318,-500.0,0.00010171,2]
[348997432,1736927434328,-501.41354806,0.00010171,2]